{"text_format":"3","workbook":"xlsx","n_sheets":1,"sheets":["Отчет на разходите"],"not_rendered":{"images":2,"defined_names":12},"read":"whole","date_system":"1900"}

{"sheet":"Отчет на разходите","index":0,"n_rows":24,"n_cols":13,"rows_kept":24,"merged":[[3,2,3,3],[3,5,3,6],[3,9,3,10],[4,2,4,3],[4,5,4,6],[4,9,4,10],[5,2,5,3],[5,5,5,6],[5,9,5,10],[6,2,6,3],[6,5,6,6],[6,9,6,10],[7,9,7,10]]}
[null,"ОТЧЕТ НА РАЗХОДИТЕ"]
[null,"CONTOSO, LTD"]
[null,"София 1000, бул. Ал. Батенберг №1"]
[null,"ТЕЛЕФОН",4255550121,null,"ИМЕ","Биляна Иванова",null,null,"ЦЕЛ","Годишен търговски семинар",null,"СТАВКА НА КИЛОМЕТЪР",{"v":0.5,"d":"лв.0.50/км"}]
[null,"ФАКС",4255550122,null,"ОТДЕЛ","Продажби",null,null,"НАЧАЛНО",{"$f":"IFERROR(MIN(Разходи[ДАТА]),\"\")","v":"2018-06-04"},null,"СТАВКА ЗА ХРАНА",{"v":30,"d":"лв.30.00/ден"}]
[null,"ИМЕЙЛ","info@contoso.com",null,"ПОЗИЦИЯ","Управляващ директор",null,null,"КРАЙ",{"$f":"IFERROR(MAX(Разходи[ДАТА]),\"\")","v":"2018-07-04"},null,"СТАВКА ЗА ХОТЕЛ",{"v":200,"d":"лв.200.00/нощ"}]
[null,"УЕБ САЙТ","www.contoso.com",null,"МЕНИДЖЪР","Пламен Григоров",null,null,"ИЗГОТВЕН ОТ","Биляна Иванова",null,"СТАВКА ЗА ТЕЛЕФОН",{"v":10,"d":"лв.10.00/ден"}]
[{"$nulls":8},"ОДОБРЕН ОТ","Пламен Григоров",null,"РАЗНИ СТАВКА",{"v":50,"d":"лв.50.00/ден"}]
[]
[null,"ДАТА","СМЕТКА","ОПИСАНИЕ","ХОТЕЛ","ТРАНСПОРТ","ХРАНА","ТЕЛЕФОН","РАЗНИ","ОДОМЕТЪР \nНАЧАЛО","ОДОМЕТЪР \nКРАЙ","ПРОБЕГ \nОБЩА СУМА","ОБЩА СУМА "]
[null,{"$f":"TODAY()","v":"2018-06-04"},"Продажби","Пробег",{"$nulls":4},{"v":50,"d":"50.00 лв."},{"v":11378.5,"d":"11,378.5 км"},{"v":11456.2,"d":"11,456.2 км"},{"$f":"IF(COUNTA(Разходи[[#This Row],[ОДОМЕТЪР \nНАЧАЛО]:[ОДОМЕТЪР \nКРАЙ]])=2,(Разходи[[#This Row],[ОДОМЕТЪР \nКРАЙ]]-Разходи[[#This Row],[ОДОМЕТЪР \nНАЧАЛО]])*СтавкаКилометър,\"\")","v":{"v":38.850000000000364,"d":"38.85 лв."}},{"$f":"IF(COUNTA(Разходи[[#This Row],[ДАТА]:[ОДОМЕТЪР \nКРАЙ]])=0,\"\",SUM(Разходи[[#This Row],[ХОТЕЛ]:[ТРАНСПОРТ]],Разходи[[#This Row],[ХРАНА]:[РАЗНИ]],((Разходи[[#This Row],[ОДОМЕТЪР \nКРАЙ]]-Разходи[[#This Row],[ОДОМЕТЪР \nНАЧАЛО]])*(СтавкаКилометър))))","v":{"v":88.85000000000036,"d":"88.85 лв."}}]
[null,{"$f":"TODAY()+30","v":"2018-07-04"},"Продажби","Конгрес",{"v":445,"d":"445.00 лв."},{"v":225,"d":"225.00 лв."},{"v":20,"d":"20.00 лв."},null,{"v":5,"d":"5.00 лв."},{"v":11500,"d":"11,500.0 км"},{"v":11560,"d":"11,560.0 км"},{"$f":"IF(COUNTA(Разходи[[#This Row],[ОДОМЕТЪР \nНАЧАЛО]:[ОДОМЕТЪР \nКРАЙ]])=2,(Разходи[[#This Row],[ОДОМЕТЪР \nКРАЙ]]-Разходи[[#This Row],[ОДОМЕТЪР \nНАЧАЛО]])*СтавкаКилометър,\"\")","v":{"v":30,"d":"30.00 лв."}},{"$f":"IF(COUNTA(Разходи[[#This Row],[ДАТА]:[ОДОМЕТЪР \nКРАЙ]])=0,\"\",SUM(Разходи[[#This Row],[ХОТЕЛ]:[ТРАНСПОРТ]],Разходи[[#This Row],[ХРАНА]:[РАЗНИ]],((Разходи[[#This Row],[ОДОМЕТЪР \nКРАЙ]]-Разходи[[#This Row],[ОДОМЕТЪР \nНАЧАЛО]])*(СтавкаКилометър))))","v":{"v":725,"d":"725.00 лв."}}]
[{"$nulls":11},{"$f":"IF(COUNTA(Разходи[[#This Row],[ОДОМЕТЪР \nНАЧАЛО]:[ОДОМЕТЪР \nКРАЙ]])=2,(Разходи[[#This Row],[ОДОМЕТЪР \nКРАЙ]]-Разходи[[#This Row],[ОДОМЕТЪР \nНАЧАЛО]])*СтавкаКилометър,\"\")","v":""},{"$f":"IF(COUNTA(Разходи[[#This Row],[ДАТА]:[ОДОМЕТЪР \nКРАЙ]])=0,\"\",SUM(Разходи[[#This Row],[ХОТЕЛ]:[ТРАНСПОРТ]],Разходи[[#This Row],[ХРАНА]:[РАЗНИ]],((Разходи[[#This Row],[ОДОМЕТЪР \nКРАЙ]]-Разходи[[#This Row],[ОДОМЕТЪР \nНАЧАЛО]])*(СтавкаКилометър))))","v":""}]
[{"$nulls":11},{"$f":"IF(COUNTA(Разходи[[#This Row],[ОДОМЕТЪР \nНАЧАЛО]:[ОДОМЕТЪР \nКРАЙ]])=2,(Разходи[[#This Row],[ОДОМЕТЪР \nКРАЙ]]-Разходи[[#This Row],[ОДОМЕТЪР \nНАЧАЛО]])*СтавкаКилометър,\"\")","v":""},{"$f":"IF(COUNTA(Разходи[[#This Row],[ДАТА]:[ОДОМЕТЪР \nКРАЙ]])=0,\"\",SUM(Разходи[[#This Row],[ХОТЕЛ]:[ТРАНСПОРТ]],Разходи[[#This Row],[ХРАНА]:[РАЗНИ]],((Разходи[[#This Row],[ОДОМЕТЪР \nКРАЙ]]-Разходи[[#This Row],[ОДОМЕТЪР \nНАЧАЛО]])*(СтавкаКилометър))))","v":""}]
[{"$nulls":11},{"$f":"IF(COUNTA(Разходи[[#This Row],[ОДОМЕТЪР \nНАЧАЛО]:[ОДОМЕТЪР \nКРАЙ]])=2,(Разходи[[#This Row],[ОДОМЕТЪР \nКРАЙ]]-Разходи[[#This Row],[ОДОМЕТЪР \nНАЧАЛО]])*СтавкаКилометър,\"\")","v":""},{"$f":"IF(COUNTA(Разходи[[#This Row],[ДАТА]:[ОДОМЕТЪР \nКРАЙ]])=0,\"\",SUM(Разходи[[#This Row],[ХОТЕЛ]:[ТРАНСПОРТ]],Разходи[[#This Row],[ХРАНА]:[РАЗНИ]],((Разходи[[#This Row],[ОДОМЕТЪР \nКРАЙ]]-Разходи[[#This Row],[ОДОМЕТЪР \nНАЧАЛО]])*(СтавкаКилометър))))","v":""}]
[{"$nulls":11},{"$f":"IF(COUNTA(Разходи[[#This Row],[ОДОМЕТЪР \nНАЧАЛО]:[ОДОМЕТЪР \nКРАЙ]])=2,(Разходи[[#This Row],[ОДОМЕТЪР \nКРАЙ]]-Разходи[[#This Row],[ОДОМЕТЪР \nНАЧАЛО]])*СтавкаКилометър,\"\")","v":""},{"$f":"IF(COUNTA(Разходи[[#This Row],[ДАТА]:[ОДОМЕТЪР \nКРАЙ]])=0,\"\",SUM(Разходи[[#This Row],[ХОТЕЛ]:[ТРАНСПОРТ]],Разходи[[#This Row],[ХРАНА]:[РАЗНИ]],((Разходи[[#This Row],[ОДОМЕТЪР \nКРАЙ]]-Разходи[[#This Row],[ОДОМЕТЪР \nНАЧАЛО]])*(СтавкаКилометър))))","v":""}]
[{"$nulls":11},{"$f":"IF(COUNTA(Разходи[[#This Row],[ОДОМЕТЪР \nНАЧАЛО]:[ОДОМЕТЪР \nКРАЙ]])=2,(Разходи[[#This Row],[ОДОМЕТЪР \nКРАЙ]]-Разходи[[#This Row],[ОДОМЕТЪР \nНАЧАЛО]])*СтавкаКилометър,\"\")","v":""},{"$f":"IF(COUNTA(Разходи[[#This Row],[ДАТА]:[ОДОМЕТЪР \nКРАЙ]])=0,\"\",SUM(Разходи[[#This Row],[ХОТЕЛ]:[ТРАНСПОРТ]],Разходи[[#This Row],[ХРАНА]:[РАЗНИ]],((Разходи[[#This Row],[ОДОМЕТЪР \nКРАЙ]]-Разходи[[#This Row],[ОДОМЕТЪР \nНАЧАЛО]])*(СтавкаКилометър))))","v":""}]
[{"$nulls":11},{"$f":"IF(COUNTA(Разходи[[#This Row],[ОДОМЕТЪР \nНАЧАЛО]:[ОДОМЕТЪР \nКРАЙ]])=2,(Разходи[[#This Row],[ОДОМЕТЪР \nКРАЙ]]-Разходи[[#This Row],[ОДОМЕТЪР \nНАЧАЛО]])*СтавкаКилометър,\"\")","v":""},{"$f":"IF(COUNTA(Разходи[[#This Row],[ДАТА]:[ОДОМЕТЪР \nКРАЙ]])=0,\"\",SUM(Разходи[[#This Row],[ХОТЕЛ]:[ТРАНСПОРТ]],Разходи[[#This Row],[ХРАНА]:[РАЗНИ]],((Разходи[[#This Row],[ОДОМЕТЪР \nКРАЙ]]-Разходи[[#This Row],[ОДОМЕТЪР \nНАЧАЛО]])*(СтавкаКилометър))))","v":""}]
[{"$nulls":11},{"$f":"IF(COUNTA(Разходи[[#This Row],[ОДОМЕТЪР \nНАЧАЛО]:[ОДОМЕТЪР \nКРАЙ]])=2,(Разходи[[#This Row],[ОДОМЕТЪР \nКРАЙ]]-Разходи[[#This Row],[ОДОМЕТЪР \nНАЧАЛО]])*СтавкаКилометър,\"\")","v":""},{"$f":"IF(COUNTA(Разходи[[#This Row],[ДАТА]:[ОДОМЕТЪР \nКРАЙ]])=0,\"\",SUM(Разходи[[#This Row],[ХОТЕЛ]:[ТРАНСПОРТ]],Разходи[[#This Row],[ХРАНА]:[РАЗНИ]],((Разходи[[#This Row],[ОДОМЕТЪР \nКРАЙ]]-Разходи[[#This Row],[ОДОМЕТЪР \nНАЧАЛО]])*(СтавкаКилометър))))","v":""}]
[{"$nulls":11},{"$f":"IF(COUNTA(Разходи[[#This Row],[ОДОМЕТЪР \nНАЧАЛО]:[ОДОМЕТЪР \nКРАЙ]])=2,(Разходи[[#This Row],[ОДОМЕТЪР \nКРАЙ]]-Разходи[[#This Row],[ОДОМЕТЪР \nНАЧАЛО]])*СтавкаКилометър,\"\")","v":""},{"$f":"IF(COUNTA(Разходи[[#This Row],[ДАТА]:[ОДОМЕТЪР \nКРАЙ]])=0,\"\",SUM(Разходи[[#This Row],[ХОТЕЛ]:[ТРАНСПОРТ]],Разходи[[#This Row],[ХРАНА]:[РАЗНИ]],((Разходи[[#This Row],[ОДОМЕТЪР \nКРАЙ]]-Разходи[[#This Row],[ОДОМЕТЪР \nНАЧАЛО]])*(СтавкаКилометър))))","v":""}]
[{"$nulls":11},{"$f":"IF(COUNTA(Разходи[[#This Row],[ОДОМЕТЪР \nНАЧАЛО]:[ОДОМЕТЪР \nКРАЙ]])=2,(Разходи[[#This Row],[ОДОМЕТЪР \nКРАЙ]]-Разходи[[#This Row],[ОДОМЕТЪР \nНАЧАЛО]])*СтавкаКилометър,\"\")","v":""},{"$f":"IF(COUNTA(Разходи[[#This Row],[ДАТА]:[ОДОМЕТЪР \nКРАЙ]])=0,\"\",SUM(Разходи[[#This Row],[ХОТЕЛ]:[ТРАНСПОРТ]],Разходи[[#This Row],[ХРАНА]:[РАЗНИ]],((Разходи[[#This Row],[ОДОМЕТЪР \nКРАЙ]]-Разходи[[#This Row],[ОДОМЕТЪР \nНАЧАЛО]])*(СтавкаКилометър))))","v":""}]
[null,"ОБЩИ СУМИ",null,null,{"$f":"SUBTOTAL(109,Разходи[ХОТЕЛ])","v":{"v":445,"d":"445.00 лв."}},{"$f":"SUBTOTAL(109,Разходи[ТРАНСПОРТ])","v":{"v":225,"d":"225.00 лв."}},{"$f":"SUBTOTAL(109,Разходи[ХРАНА])","v":{"v":20,"d":"20.00 лв."}},{"$f":"SUBTOTAL(109,Разходи[ТЕЛЕФОН])","v":0},{"$f":"SUBTOTAL(109,Разходи[РАЗНИ])","v":{"v":55,"d":"55.00 лв."}},{"$nulls":3},{"$f":"SUBTOTAL(109,Разходи[[ОБЩА СУМА ]])","v":{"v":813.8500000000004,"d":"813.85 лв."}}]
[{"$nulls":11},"АВАНСИ",{"v":0,"d":"0.00 лв."}]
[{"$nulls":11},"ОБЩА СУМА",{"$f":"Разходи[[#Totals],[ОБЩА СУМА ]]-Аванси","v":{"v":813.8500000000004,"d":"813.85 лв."}}]